Cogmind - Beta 13 @@@ ROGUE MODE // 2024.04.01 @ 16:20:04 Player: Cheese Result: Self-destructed Performance ------------- Evolutions (1) 500 Regions Visited (3) 600 Robots Destroyed (31) 155 Value Destroyed (452) 452 Prototype IDs (0) 0 Alien Tech Used (0) 0 Bonus (8) 8 TOTAL SCORE: 1715 Bonus ------- High Alert Combat Kills 8 Cogmind --------- Core Integrity 160/400 Matter 354/500 Energy 265/265 System Corruption 0% Temperature Cool (0) Movement Rolling (115) Ox1 Location -9/Mines Parts ------- > --- POWER (1) -------- Reinforced Ion Engine > --- PROPULSION (3) --- Compact Wheel > --- UTILITY (3) ------ Small Storage Unit High-capacity Matter Pod Targeting Computer > --- WEAPON (2) ------- (None) > --- INVENTORY (8) ---- Light Ion Engine Small Storage Unit Small Matter Pod (38) Small Matter Pod (0) Peak State ------------ > --- POWER ------------ Improved Ion Engine > --- PROPULSION ------- Light Treads Wheel Armored Wheel > --- UTILITY ---------- Small Storage Unit Targeting Computer Light Armor Plating > --- WEAPON ----------- Improved Light Cannon Grenade Launcher > --- INVENTORY -------- Light Ion Engine Light Ion Engine Wheel Compact Wheel Small Storage Unit Small Matter Pod Light Assault Rifle Light Assault Rifle [Rating: 12] Favorites ----------- Power Ion Engine Engine Ion Engine Propulsion Wheel Treads Light Treads Leg Aluminum Leg Wheel Wheel Utility Small Storage Unit Device Seismic Detector Storage Small Storage Unit Processor Targeting Computer Protection Light Armor Plating Weapon Light Assault Rifle Ballistic Gun Light Assault Rifle Ballistic Cannon Improved Light Cannon Launcher Grenade Launcher Build | -11 -10 -9 -9 ------- Run | Yrd Mat Mat Min Slots Evolved 2 | . . 2 . Power . | . . . . Propulsion 1 | . . 1 . Utility 1 | . . 1 . Weapon . | . . . . Parts Attached 31 | 8 10 10 3 Power 4 | 1 1 1 1 Engine 4 | 1 1 1 1 Core . | . . . . Reactor . | . . . . Propulsion 12 | 4 4 3 1 Treads 1 | . 1 . . Leg 1 | . 1 . . Wheel 10 | 4 2 3 1 Hover . | . . . . Flight . | . . . . Utility 7 | 1 3 3 . Device 1 | 1 . . . Storage 4 | . 2 2 . Processor 1 | . . 1 . Hackware . | . . . . Protection 1 | . 1 . . Artifact . | . . . . Weapon 8 | 2 2 3 1 Energy Gun . | . . . . Energy Cannon . | . . . . Ballistic Gun 5 | 2 2 1 . Ballistic Cannon 1 | . . 1 . Launcher 2 | . . 1 1 Special Weapon . | . . . . Impact Weapon . | . . . . Slashing Weapon . | . . . . Piercing Weapon . | . . . . Special Melee Weapon . | . . . . Unidentified Prototypes . | . . . . Parts Lost 11 | . 3 2 6 Power 1 | . . . 1 Propulsion 4 | . 1 1 2 Utility 2 | . 1 1 . Weapon 4 | . 1 . 3 Highest Loss Streak 6 | . 2 1 6 To Critical Strikes . | . . . . Average Slot Usage (%) 89 | . 85 96 80 Engine 12 | . 14 11 11 Treads 6 | . 2 11 5 Leg 1 | . 3 . . Wheel 20 | . 20 21 17 Device 2 | . 5 . . Storage 12 | . 9 13 22 Processor 4 | . . 8 11 Protection 5 | . 4 7 . Ballistic Gun 16 | . 25 6 5 Ballistic Cannon 4 | . . 10 5 Launcher 2 | . . 5 . Naked Turns . | . . . . Heaviest Build 23 | 7 17 22 23 Greatest Support 26 | 20 26 26 26 Greatest Overweight (x) 2 | . 1 2 1 Average Overweight (x) . | . . . . Largest Inventory Capacity 8 | 5 8 8 8 Average Capacity 7 | 5 6 8 8 Most Carried 8 | 2 8 8 7 Average Carried 5 | . 4 7 5 Final Capacity 8 | 5 8 8 8 Final Carried 7 | 2 7 7 4 Class Distribution -------------------- 71% | Mutant 28% | Scavenger-Mutant Dominant Class ---------------- Scavenger-Mutant | -10/Materials Mutant | -9/Materials Mutant | -9/Mines Resources | -11 -10 -9 -9 ----------- Run | Yrd Mat Mat Min Matter Collected 873 | 320 181 372 . Remotely . | . . . . Salvage Created 598 | 79 353 166 . Parts 59 | 6 31 22 . Haulers Intercepted . | . . . . Recyclers Shooed 2 | . 1 1 . Parts Field Recycled . | . . . . Retrieved Matter . | . . . . Parts Self-Destructed . | . . . . Prevented . | . . . . Kills | -11 -10 -9 -9 ------- Run | Yrd Mat Mat Min Combat Hostiles Destroyed 25 | 1 10 14 . Guns 16 | 1 10 5 . Cannons 9 | . . 9 . Classes Destroyed 6 | 3 2 1 . Worker 3 | 1 1 1 . Tunneler 2 | 1 1 . . Recycler 1 | . 1 . . Swarmer 18 | . 6 12 . Grunt 6 | 1 4 1 . Sentry 1 | . . 1 . Best Kill Streak 8 | 2 8 5 . Combat Bots Only 8 | 1 8 5 . Max Kills in Single Turn 1 | 1 1 1 . Gunslinging . | . . . . Exploded . | . . . . Melee . | . . . . Uniques/NPCs Destroyed . | . . . . Combat | -11 -10 -9 -9 -------- Run | Yrd Mat Mat Min Hostile Shots Fired 204 | 6 53 110 35 Missed 50 | 3 12 29 6 Damage Taken 1593 | 34 395 752 412 Core 330 | . 90 90 150 Absorbed by Shields . | . . . . Core Remaining (%) 82 | 100 64 . . Volleys Fired 99 | 10 41 46 2 Largest 2 | 2 2 2 2 Hottest 59 | 40 40 59 59 Shots Fired 170 | 20 72 74 4 Gun 122 | 20 72 28 2 Cannon 48 | . . 46 2 Launcher . | . . . . Special . | . . . . Kinetic 170 | 20 72 74 4 Thermal . | . . . . Explosive . | . . . . Electromagnetic . | . . . . Robot Hit Streak 15 | 5 15 10 5 Robot Miss Streak 4 | 2 2 4 . Penetration Max . | . . . . Secondary Targets 1 | . 1 . . Max Gunslinging Chain 1 | . 1 . . Shots Hit Robots 116 | 11 55 46 4 Core Hits 52 | 6 25 20 1 Critical Kills . | . . . . Critical Parts Destroyed . | . . . . Critical Strikes 2 | . . 2 . Blast 2 | . . 2 . Melee Attacks . | . . . . Impact . | . . . . Slashing . | . . . . Piercing . | . . . . Sneak Attacks . | . . . . Combat Hostiles . | . . . . Follow-up Attacks . | . . . . Damage Inflicted 1432 | 130 498 743 61 Guns 777 | 130 498 133 16 Cannons 652 | . . 607 45 Explosions . | . . . . Melee . | . . . . Ramming 3 | . . 3 . Kinetic 1429 | 130 498 740 61 Thermal . | . . . . Explosive . | . . . . Electromagnetic . | . . . . Impact . | . . . . Slashing . | . . . . Piercing . | . . . . Highest Corruption . | . . . . Average Corruption . | . . . . Corruption Purged . | . . . . Corruption Blocked . | . . . . Overload Shots . | . . . . Overflow Damage 8 | . . 8 . Projectiles 8 | . . 8 . Explosions . | . . . . Melee . | . . . . Knockbacks 6 | . . 6 . Impact . | . . . . Kinetic 6 | . . 6 . Secondary . | . . . . Self-Inflicted Damage 1 | . . 1 . Shots . | . . . . Rammed 1 | . . 1 . Targets Rammed 1 | . . 1 . Kicked . | . . . . Crushed . | . . . . Highest Temperature 68 | 12 25 68 46 Average Temperature 22 | 8 8 27 24 Received Heat Transfer 405 | 18 150 81 156 Siege Activations . | . . . . Robots Corrupted . | . . . . Combat Hostiles . | . . . . Parts Fried . | . . . . Impact Corruptions . | . . . . Robots Melted . | . . . . Combat Hostiles . | . . . . Parts Melted . | . . . . Heat Transferred . | . . . . Parts Sabotaged . | . . . . Parts Stolen . | . . . . Parts Stripped . | . . . . Power Chain Reactions . | . . . . Alert | -11 -10 -9 -9 ------- Run | Yrd Mat Mat Min Peak Influence 438 | 30 320 438 130 Initial 100 | . 19 67 100 Average 174 | 9 197 205 90 Maximum Alert Level 2 | . 1 2 . Low Security (%) 56 | 100 51 42 100 Level 1 42 | . 48 54 . Level 2 1 | . . 3 . Level 3 . | . . . . Level 4 . | . . . . Level 5 . | . . . . High Security . | . . . . Max Security . | . . . . Squads Dispatched 3 | . 2 1 . Investigation 1 | . . 1 . Extermination . | . . . . Reinforcement 2 | . 2 . . Assault . | . . . . Garrison . | . . . . Intercept . | . . . . Searches Triggered . | . . . . Construction Impeded . | . . . . Haulers Reinforced . | . . . . Active Scanning Responses . | . . . . Cargo Convoy Interrupts . | . . . . Stealth | -11 -10 -9 -9 --------- Run | Yrd Mat Mat Min Distress Signals 2 | . . 2 . Communications Jammed . | . . . . Distress Signals . | . . . . Times Spotted 47 | 1 19 20 7 Peak Tracking Total 7 | 1 7 7 7 Tactical Retreats 5 | . 2 2 1 Traps | -11 -10 -9 -9 ------- Run | Yrd Mat Mat Min Traps Triggered . | . . . . Indirectly . | . . . . Trap Hack Attempts . | . . . . Triggered . | . . . . Disarmed . | . . . . Reprogrammed . | . . . . Reused . | . . . . Traps Extracted . | . . . . Installed . | . . . . Triggered . | . . . . Machines | -11 -10 -9 -9 ---------- Run | Yrd Mat Mat Min Machines Disabled . | . . . . Max in Single Turn . | . . . . Machines Repaired . | . . . . Machines Dismantled . | . . . . Machines Sabotaged . | . . . . Overloaded Fab Kills . | . . . . Hacking | -11 -10 -9 -9 --------- Run | Yrd Mat Mat Min Machines Accessed 6 | . 4 2 . Terminals 6 | . 4 2 . Fabricators . | . . . . Repair Stations . | . . . . Recycling Units . | . . . . Scanalyzers . | . . . . Garrison Access . | . . . . Total Hacks 15 | . 10 5 . Successful 9 | . 7 2 . Failed 6 | . 3 3 . Catastrophic 1 | . 1 . . Database Lockouts . | . . . . Manual 2 | . . 2 . Terminals 15 | . 10 5 . Fabricators . | . . . . Repair Stations . | . . . . Recycling Units . | . . . . Scanalyzers . | . . . . Garrison Access . | . . . . Terminal Hacks 9 | . 7 2 . Record 7 | . 5 2 . Locate Traps 1 | . 1 . . Zone Layout 1 | . 1 . . Fabricator Hacks . | . . . . Repair Station Hacks . | . . . . Recycling Unit Hacks . | . . . . Scanalyzer . | . . . . Garrison Access Hacks . | . . . . Unauthorized Hacks . | . . . . Terminals . | . . . . Fabricators . | . . . . Repair Stations . | . . . . Recycling Units . | . . . . Scanalyzers . | . . . . Garrison Access . | . . . . Data Cores Recovered . | . . . . Used . | . . . . Hacking Detections 4 | . 2 2 . Full Trace Events 2 | . 1 1 . Feedback Events . | . . . . Feedback Blocked . | . . . . Robot Schematics Acquired . | . . . . Robots Built . | . . . . Authchips . | . . . . Time . | . . . . Total Robot Build Rating . | . . . . Part Schematics Acquired . | . . . . Parts Built . | . . . . Authchips . | . . . . Time . | . . . . Total Part Build Rating . | . . . . Parts Repaired . | . . . . Time . | . . . . Parts Recycled . | . . . . Recycled Matter . | . . . . Retrieved Matter . | . . . . Retrieved Components . | . . . . Parts Scanalyzed . | . . . . Part Schematics Acquired . | . . . . Parts Damaged . | . . . . Bothacking | -11 -10 -9 -9 ------------ Run | Yrd Mat Mat Min Used RIF Installer . | . . . . Robots Hacked . | . . . . Non-combat . | . . . . Combat . | . . . . Robot Hacks Applied . | . . . . Relay Couplers Released . | . . . . Fabnet Peak Effective % . | . . . . Robots Rewired . | . . . . Allies Hacked . | . . . . Hacks Repelled . | . . . . Allies | -11 -10 -9 -9 -------- Run | Yrd Mat Mat Min Total Allies . | . . . . Largest Group . | . . . . Highest-Rated Group . | . . . . Highest-Rated Ally . | . . . . Total Orders . | . . . . Ally Attacks . | . . . . Total Damage . | . . . . Kills . | . . . . Allies Corrupted . | . . . . Allies Melted . | . . . . Intel | -11 -10 -9 -9 ------- Run | Yrd Mat Mat Min Robot Analysis Total . | . . . . Derelict Logs Recovered 1 | . . . 1 Drone Launches . | . . . . Drone Recoveries . | . . . . Exploration | -11 -10 -9 -9 ------------- Run | Yrd Mat Mat Min Turns Passed 1256 | 98 576 450 132 Spaces Moved 830 | 77 368 274 111 Core 16 | 16 . . . Treads 12 | . . 10 2 Legs 68 | . 68 . . Wheels 734 | 61 300 264 109 Hover . | . . . . Flight . | . . . . Fastest Speed 50 | 50 80 85 90 Average Speed 97 | 73 104 92 102 Slowest Speed 240 | 80 190 240 240 Overloaded Moves . | . . . . Propulsion Burnouts . | . . . . Robots Hopped . | . . . . Cave-ins Triggered . | . . . . Exploration Rate (%) 30 | 7 58 33 22 Regions Visited 3 Branch Regions 1 Pre-discovered Areas 1 | . . . 1 Known Exits Taken . | . . . . Unknown Exits Taken 3 | 1 1 1 . Scrap Searched . | . . . . Spaces Dug . | . . . . Terrain Destroyed . | . . . . Melee . | . . . . Projectile . | . . . . AOE . | . . . . Terrain Rammed . | . . . . Walls Destroyed . | . . . . Machines Disabled . | . . . . Actions | -11 -10 -9 -9 --------- Run | Yrd Mat Mat Min Total 1119 | 96 497 400 126 Wait 142 | . 70 63 9 Move 827 | 76 367 273 111 Hop . | . . . . Pick Up 9 | 1 5 3 . Fast Attach 12 | 6 4 2 . Attach 6 | . 2 2 2 Detach 1 | . 1 . . Swap 13 | 2 4 6 1 Drop 9 | 1 3 4 1 Fire 99 | 10 41 46 2 Melee . | . . . . Ram 1 | . . 1 . Kick . | . . . . Crush . | . . . . Escape Stasis . | . . . . Rewire . | . . . . Trap . | . . . . Miscellaneous . | . . . . Route ------- -11/Scrapyard -10/Materials (discovered 3 exits: *Mat x2 / [*Min]) -9/Materials -9/Mines History --------- Turn | Location | Event 2 | -11/Scrapyard | Met Revision 17 55 | -11/Scrapyard | Discovered new exit (range 8) 99 | -11/Scrapyard | Entered Materials 248 | -10/Materials | Destroyed 8 combat bots 265 | -10/Materials | Discovered new exit (range 9) 427 | -10/Materials | Discovered new exit (range 8) 586 | -10/Materials | Discovered new exit (range 18) 675 | -10/Materials | Entered another Materials area 675 | -9/Materials | Evolved 2 slots: Propulsion x1, Utility x1 1012 | -9/Materials | Build established: Mutant 1037 | -9/Materials | Discovered new exit (range 16) 1125 | -9/Materials | Entered Mines 1146 | -9/Mines | Learned location of Storage (-9) 1235 | -9/Mines | Core integrity fell below 50% 1240 | -9/Mines | Lost 6 parts (1p2n3w) 1257 | -9/Mines | Self-destructed Last Messages --------------- 01102_ Recycling unit begins recycling process. 01104_ R-06 Scavenger inserts Lgt. Ion Engine into recycling unit. 01107_ R-06 Scavenger inserts Lgt. Assault Rifle into recycling unit. 01108_ Recycling unit begins recycling process. 01110_ R-06 Scavenger inserts Lgt. Ion Engine into recycling unit. LOCATION=UNKNOWN GOAL=ESCAPE 01132_ Dropped Wheel. 01146_ Acquired derelict log, extracted data. World map updated: -9/Storage. 01197_ Lgt. Assault Rifle destroyed. 01197_ Critical hit (Burn: +37). 01197_ Imp. Ion Engine destroyed. 01198_ Lgt. Treads destroyed. 01198_ Imp. Light Cannon destroyed. 01200_ Grenade Launcher destroyed. 01209_ Wheel destroyed. Map ----- +----------------------------------------------------+ | ?????????????????????????????????????? | | ?????????????????????????????????????? | | ?????????????????????????????????????? | | ?????????????????????????????????????? | | ?????????????????????????????????????? | | ?????????????????????????????????????? | | ?????????????????????????????????????? | | ?????????????????????????????????????? | | ?????????????????????????????????????? | | ?????????????????????????????????????? | | ?????????????????????????????????????? | | ?????????????????????????????????????? | | ?????????????????????????????????????? | | ?????????????????????????????????????? | | ?????????????????????????????????????? | | ?????????????????????????????????????? | | ?????????????????????????????????????? | | ?????????????????????????????????????? | | ?????????????????????????????????????? | | ?????????????????????????????????????? | | ?????????????????????????????????????? | | ?????????????????????????????????????? | | ?????????????????????????????????????? | | ??????##?????????????????????????????? | | ???#### ???????????????######????????? | | ???? ??????????????# @ #????????? | | ????? ??????????????#g## #????????? | | ?????? ?????#???????#g## #????????? | | ??????? ?????# ??????# ## #????????? | | ???????# ### ####### # ????????? | | ????????# # ????????? | | ?????????# ##### ####### ????????? | | ?????????# ?????# #?????? "????????? | | ????????## ????# #?????# ""???????? | | ???????## ##### #?????# ""???????? | | ???????# #?????# ???????? | | ???????# ##### #?????####????????? | | ??????# ??????# #?????????????????? | | ?????# ????????# ##????????????##??? | | ?????#??????????# ##?????????? ##?? | | ???????????????## #??????### ##? | | ???????????????# #?????## #? | | ???????????????# ####### #? | | ???????????????# """ #? | | ???????????????###### ### ### """ #? | | ???????????####????## #?# #?# """ #? | | ??????????## ###### ### #??# ?? | | ??????????# ## ## #???# #?? | | ??????????# ## #????# ##? | | ??????????## ## #????# #? | +----------------------------------------------------+ Best States ------------- Heat Dissipation 28 Energy Generation 12 Energy Capacity 265 Matter Stores 364 Matter Capacity 500 Sight Range 16 Terrain Scan Density 10 Armor Coverage 150 Evasion (%) 50 Targeting Accuracy 5 Recoil Reduction 1 Item Schematics ----------------- None Robot Schematics ------------------ None Fabricated ------------ Nothing Alien Tech Used ----------------- None Achievements -------------- One Hack Too Far Challenges ------------ None Game ------ Seed SkeletonNullReconstructor Manual? 0 Play Time 00:26:07 Cumulative 0.9 hours Start 2024.04.01 @ 15:54:22 End 2024.04.01 @ 16:20:04 Sessions 1 Manual Loads 0 Difficulty Rogue Special Mode None Game No. 3 Rogue 3 Adventurer 0 Explorer 0 Win Type - Total 0 Types 0/0/0/0/0/0/0/0/0 Lore% 1 Gallery% 3 Achievement% 2 Wizard Run 0 Options --------- Layout 1 ASCII 0 Keyboard 0 Movement Mouse Keybinds 0 Fullscreen 1 Font 16/SmallcapsGlow Map View 55x38 Zoom Use 0% Tactical HUD 1 Map Filters NONE Filters NONE Steam 1 RUN: 2572e4c3-2c44-441d-86f0-437b71d88f30